Cogmind - Beta 14 @@@ ROGUE MODE // 2024.11.30 @ 23:01:40 Player: Sam Result: Destroyed by as-09863 with Assembled Rifle Performance ------------- Evolutions (0) 0 Regions Visited (4) 800 Robots Destroyed (13) 65 Value Destroyed (274) 274 Prototype IDs (2) 40 Alien Tech Used (0) 0 Bonus (0) 0 TOTAL SCORE: 1179 Bonus ------- None Cogmind --------- Core Integrity 0/250 Matter 111/300 Energy 249/250 System Corruption 0% Temperature Cool (2) Movement Hovering (56) Location -9/Mines Parts ------- > --- POWER (1) -------- Ion Engine > --- PROPULSION (2) --- Improved Hover Unit Improved Hover Unit > --- UTILITY (2) ------ Small Storage Unit Seismic Detector > --- WEAPON (2) ------- Light Assault Rifle > --- INVENTORY (8) ---- Ion Engine Improved Hover Unit Cooling System Sensor Array Medium Armor Plating Medium Armor Plating Medium Armor Plating Grenade Launcher Peak State ------------ > --- POWER ------------ Ion Engine > --- PROPULSION ------- Improved Hover Unit Improved Hover Unit > --- UTILITY ---------- Small Storage Unit Seismic Detector > --- WEAPON ----------- Light Assault Rifle Grenade Launcher > --- INVENTORY -------- Ion Engine Improved Hover Unit Cooling System Sensor Array Medium Armor Plating Medium Armor Plating EM Pulse Gun [Rating: 10] Favorites ----------- Power Ion Engine Engine Ion Engine Propulsion Improved Hover Unit Treads Light Treads Wheel Wheel Hover Unit Improved Hover Unit Utility Small Storage Unit Device Seismic Detector Storage Small Storage Unit Weapon Light Assault Rifle Energy Gun EM Pulse Gun Ballistic Gun Light Assault Rifle Launcher Grenade Launcher Build | -11 -10 -10 -10 -9 ------- Run | Yrd Mat Min Exi Min Slots Evolved . | . . . . . Power . | . . . . . Propulsion . | . . . . . Utility . | . . . . . Weapon . | . . . . . Parts Attached 19 | 6 11 . . 2 Power 3 | 1 2 . . . Engine 3 | 1 2 . . . Core . | . . . . . Reactor . | . . . . . Propulsion 6 | 2 4 . . . Treads 2 | 2 . . . . Leg . | . . . . . Wheel 1 | . 1 . . . Hover 3 | . 3 . . . Flight . | . . . . . Utility 2 | 1 1 . . . Device 1 | . 1 . . . Storage 1 | 1 . . . . Processor . | . . . . . Hackware . | . . . . . Protection . | . . . . . Artifact . | . . . . . Weapon 8 | 2 4 . . 2 Energy Gun 3 | 1 2 . . . Energy Cannon . | . . . . . Ballistic Gun 2 | 1 . . . 1 Ballistic Cannon . | . . . . . Launcher 3 | . 2 . . 1 Special Weapon . | . . . . . Impact Weapon . | . . . . . Slashing Weapon . | . . . . . Piercing Weapon . | . . . . . Special Melee Weapon . | . . . . . Unidentified Prototypes . | . . . . . Parts Lost 7 | . 6 . . 1 Power 1 | . 1 . . . Propulsion 2 | . 2 . . . Utility . | . . . . . Weapon 4 | . 3 . . 1 Highest Loss Streak 4 | . 4 . . 1 To Critical Strikes . | . . . . . Average Slot Usage (%) 87 | . 79 100 100 100 Engine 11 | . 9 14 14 14 Treads 5 | . 10 . . . Hover 17 | . 9 28 28 28 Device 10 | . 7 14 14 14 Storage 14 | . 14 14 14 14 Energy Gun 8 | . 5 14 14 14 Ballistic Gun 13 | . 14 14 14 11 Launcher 5 | . 8 . . 2 Peak Build Rating 10 | 6 10 10 10 10 Average Rating 7 | 4 5 10 10 9 On Entrance 7 | . 6 10 10 10 Naked Turns . | . . . . . Heaviest Build 16 | 13 15 14 14 16 Greatest Support 40 | 40 40 14 14 14 Greatest Overweight (x) 4 | . 4 . . 1 Average Overweight (x) . | . . . . . Largest Inventory Capacity 8 | 8 8 8 8 8 Average Capacity 7 | 6 8 8 8 8 Most Carried 8 | 3 8 8 8 8 Average Carried 5 | 1 4 8 8 8 Final Capacity 8 | 8 8 8 8 8 Final Carried 8 | 3 8 8 8 8 Class Distribution -------------------- 100% | Mutant Dominant Class ---------------- Mutant | -10/Materials Mutant | -10/Mines Mutant | -10/Exiles Mutant | -9/Mines Resources | -11 -10 -10 -10 -9 ----------- Run | Yrd Mat Min Exi Min Matter Collected 267 | 173 94 . . . Remotely . | . . . . . Salvage Created 246 | . 235 . . 11 Parts 20 | . 15 . . 5 Haulers Intercepted . | . . . . . Recyclers Shooed 3 | . 3 . . . Parts Field Recycled . | . . . . . Retrieved Matter . | . . . . . Parts Self-Destructed . | . . . . . Prevented . | . . . . . Kills | -11 -10 -10 -10 -9 ------- Run | Yrd Mat Min Exi Min Combat Hostiles Destroyed 11 | . 8 . . 3 Guns 6 | . 6 . . . AOE 5 | . 2 . . 3 Classes Destroyed 4 | . 4 . . . Worker 1 | . 1 . . . Tunneler 1 | . 1 . . . Swarmer 6 | . 3 . . 3 Grunt 5 | . 5 . . . Best Kill Streak 5 | . 5 . . 3 Combat Bots Only 4 | . 4 . . 3 Max Kills in Single Turn 2 | . 2 . . 1 Gunslinging . | . . . . . Exploded 1 | . 1 . . 1 Melee . | . . . . . Uniques/NPCs Destroyed . | . . . . . Combat | -11 -10 -10 -10 -9 -------- Run | Yrd Mat Min Exi Min Hostile Shots Fired 128 | . 97 . . 31 Missed 40 | . 28 . . 12 Damage Taken 992 | . 828 . . 164 Core 257 | . 198 . . 59 Absorbed by Shields . | . . . . . Core Remaining (%) 100 | 100 . . . . Volleys Fired 35 | . 32 . . 3 Largest 2 | . 2 . . 2 Hottest 70 | . 70 . . 70 Shots Fired 64 | . 58 . . 6 Gun 56 | . 53 . . 3 Cannon . | . . . . . Launcher 8 | . 5 . . 3 Special . | . . . . . Kinetic 32 | . 32 . . . Thermal 21 | . 21 . . . Explosive 8 | . 5 . . 3 Electromagnetic 3 | . . . . 3 Robot Hit Streak 7 | . 7 . . 1 Robot Miss Streak 4 | . 4 . . 1 Penetration Max . | . . . . . Secondary Targets 1 | . 1 . . . Max Gunslinging Chain 1 | . 1 . . . Shots Hit Robots 36 | . 35 . . 1 Core Hits 21 | . 18 . . 3 Critical Kills . | . . . . . Critical Parts Destroyed . | . . . . . Critical Strikes 1 | . 1 . . . Burn 1 | . 1 . . . Melee Attacks . | . . . . . Impact . | . . . . . Slashing . | . . . . . Piercing . | . . . . . Sneak Attacks . | . . . . . Combat Hostiles . | . . . . . Follow-up Attacks . | . . . . . Damage Inflicted 766 | . 575 . . 191 Guns 314 | . 314 . . . Cannons . | . . . . . Explosions 449 | . 258 . . 191 Melee . | . . . . . Ramming 3 | . 3 . . . Kinetic 137 | . 137 . . . Thermal 177 | . 177 . . . Explosive 449 | . 258 . . 191 Electromagnetic . | . . . . . Impact . | . . . . . Slashing . | . . . . . Piercing . | . . . . . Highest Corruption . | . . . . . Average Corruption . | . . . . . Corruption Purged . | . . . . . Corruption Blocked . | . . . . . Overload Shots . | . . . . . Overflow Damage 24 | . 2 . . 22 Projectiles . | . . . . . Explosions 24 | . 2 . . 22 Melee . | . . . . . Knockbacks . | . . . . . Impact . | . . . . . Kinetic . | . . . . . Secondary . | . . . . . Self-Inflicted Damage 56 | . 56 . . . Shots 2 | . 2 . . . Rammed 3 | . 3 . . . Targets Rammed 3 | . 3 . . . Kicked . | . . . . . Crushed . | . . . . . Highest Temperature 228 | . 228 . . 30 Average Temperature 73 | . 79 . . 14 Received Heat Transfer 390 | . 390 . . . Siege Activations . | . . . . . Robots Corrupted . | . . . . . Combat Hostiles . | . . . . . Parts Fried . | . . . . . Impact Corruptions . | . . . . . Robots Melted . | . . . . . Combat Hostiles . | . . . . . Parts Melted . | . . . . . Heat Transferred 592 | . 592 . . . Parts Sabotaged . | . . . . . Parts Stolen . | . . . . . Parts Stripped . | . . . . . Power Chain Reactions . | . . . . . Alert | -11 -10 -10 -10 -9 ------- Run | Yrd Mat Min Exi Min Peak Influence 259 | . 259 38 . 113 Initial 38 | . . 38 . . Average 91 | . 116 38 . 89 Maximum Alert Level 1 | . 1 . . . Low Security (%) 87 | 100 79 100 . 100 Level 1 12 | . 20 . . . Level 2 . | . . . . . Level 3 . | . . . . . Level 4 . | . . . . . Level 5 . | . . . . . High Security . | . . . . . Max Security . | . . . . . Squads Dispatched 1 | . 1 . . . Investigation . | . . . . . Extermination . | . . . . . Reinforcement 1 | . 1 . . . Assault . | . . . . . Garrison . | . . . . . Intercept . | . . . . . Searches Triggered . | . . . . . Construction Impeded . | . . . . . Haulers Reinforced . | . . . . . Active Scanning Responses . | . . . . . Cargo Convoy Interrupts . | . . . . . Stealth | -11 -10 -10 -10 -9 --------- Run | Yrd Mat Min Exi Min Distress Signals 3 | . 3 . . . Communications Jammed . | . . . . . Distress Signals . | . . . . . Times Spotted 45 | . 21 . . 24 Peak Tracking Total 18 | . 7 . . 18 Tactical Retreats 3 | . 2 . . 1 Traps | -11 -10 -10 -10 -9 ------- Run | Yrd Mat Min Exi Min Traps Triggered . | . . . . . Indirectly . | . . . . . Trap Hack Attempts . | . . . . . Triggered . | . . . . . Disarmed . | . . . . . Reprogrammed . | . . . . . Reused . | . . . . . Traps Extracted . | . . . . . Installed . | . . . . . Triggered . | . . . . . Machines | -11 -10 -10 -10 -9 ---------- Run | Yrd Mat Min Exi Min Machines Disabled 1 | . 1 . . . Max in Single Turn 1 | . 1 . . . Machines Repaired . | . . . . . Machines Dismantled . | . . . . . Machines Sabotaged . | . . . . . Overloaded Fab Kills . | . . . . . Hacking | -11 -10 -10 -10 -9 --------- Run | Yrd Mat Min Exi Min Machines Accessed 1 | . 1 . . . Terminals 1 | . 1 . . . Fabricators . | . . . . . Repair Stations . | . . . . . Recycling Units . | . . . . . Scanalyzers . | . . . . . Garrison Access . | . . . . . Total Hacks 1 | . 1 . . . Successful 1 | . 1 . . . Failed . | . . . . . Catastrophic . | . . . . . Database Lockouts . | . . . . . Manual 4 | . . . 4 . Terminals 1 | . 1 . . . Fabricators . | . . . . . Repair Stations . | . . . . . Recycling Units . | . . . . . Scanalyzers . | . . . . . Garrison Access . | . . . . . Terminal Hacks 1 | . 1 . . . Prototype ID Bank 1 | . 1 . . . Fabricator Hacks . | . . . . . Repair Station Hacks . | . . . . . Recycling Unit Hacks . | . . . . . Scanalyzer . | . . . . . Garrison Access Hacks . | . . . . . Unauthorized Hacks . | . . . . . Terminals . | . . . . . Fabricators . | . . . . . Repair Stations . | . . . . . Recycling Units . | . . . . . Scanalyzers . | . . . . . Garrison Access . | . . . . . Data Cores Recovered . | . . . . . Used . | . . . . . Hacking Detections 1 | . 1 . . . Full Trace Events . | . . . . . Feedback Events . | . . . . . Feedback Blocked . | . . . . . Robot Schematics Acquired . | . . . . . Robots Built . | . . . . . Authchips . | . . . . . Time . | . . . . . Total Robot Build Rating . | . . . . . Part Schematics Acquired . | . . . . . Parts Built . | . . . . . Authchips . | . . . . . Time . | . . . . . Total Part Build Rating . | . . . . . Parts Repaired . | . . . . . Time . | . . . . . Parts Recycled . | . . . . . Recycled Matter . | . . . . . Retrieved Matter . | . . . . . Retrieved Components . | . . . . . Parts Scanalyzed . | . . . . . Part Schematics Acquired . | . . . . . Parts Damaged . | . . . . . Bothacking | -11 -10 -10 -10 -9 ------------ Run | Yrd Mat Min Exi Min Used RIF Installer . | . . . . . Robots Hacked . | . . . . . Non-combat . | . . . . . Combat . | . . . . . Robot Hacks Applied . | . . . . . Relay Couplers Released . | . . . . . Fabnet Peak Effective % . | . . . . . Robots Rewired . | . . . . . Allies Hacked . | . . . . . Hacks Repelled . | . . . . . Allies | -11 -10 -10 -10 -9 -------- Run | Yrd Mat Min Exi Min Total Allies 2 | . . 2 . . Largest Group 2 | . . 2 . . Highest-Rated Group 39 | . . 39 . . Highest-Rated Ally 31 | . . 31 . . Total Orders . | . . . . . Ally Attacks . | . . . . . Total Damage . | . . . . . Kills . | . . . . . Allies Corrupted . | . . . . . Allies Melted . | . . . . . Intel | -11 -10 -10 -10 -9 ------- Run | Yrd Mat Min Exi Min Robot Analysis Total . | . . . . . Derelict Logs Recovered 1 | . . 1 . . Drone Launches . | . . . . . Drone Recoveries . | . . . . . Exploration | -11 -10 -10 -10 -9 ------------- Run | Yrd Mat Min Exi Min Turns Passed 1258 | 82 696 180 161 139 Spaces Moved 1288 | 45 425 317 285 216 Core 4 | 1 3 . . . Treads 145 | 44 101 . . . Legs . | . . . . . Wheels . | . . . . . Hover 1139 | . 321 317 285 216 Flight . | . . . . . Fastest Speed 50 | 50 56 56 56 56 Average Speed 85 | 157 133 56 56 57 Slowest Speed 250 | 160 250 56 56 116 Overloaded Moves . | . . . . . Propulsion Burnouts . | . . . . . Robots Hopped . | . . . . . Cave-ins Triggered . | . . . . . Exploration Rate (%) 43 | 4 54 72 45 40 Regions Visited 4 Branch Regions 3 Pre-discovered Areas . | . . . . . Known Exits Taken . | . . . . . Unknown Exits Taken 4 | 1 1 1 1 . Scrap Searched 1 | . . 1 . . Spaces Dug . | . . . . . Terrain Destroyed 36 | . 23 . . 13 Melee . | . . . . . Projectile . | . . . . . AOE 36 | . 23 . . 13 Terrain Rammed . | . . . . . Walls Destroyed . | . . . . . Machines Disabled . | . . . . . Actions | -11 -10 -10 -10 -9 --------- Run | Yrd Mat Min Exi Min Total 1379 | 54 498 319 285 223 Wait 19 | . 14 3 . 2 Move 1284 | 44 424 316 284 216 Hop . | . . . . . Pick Up 15 | 4 11 . . . Fast Attach 8 | 5 3 . . . Attach 8 | 1 7 . . . Detach 1 | . 1 . . . Swap 3 | . 1 . . 2 Drop 2 | . 2 . . . Fire 35 | . 32 . . 3 Melee . | . . . . . Ram . | . . . . . Kick . | . . . . . Crush 3 | . 3 . . . Escape Stasis . | . . . . . Rewire 1 | . . . 1 . Trap . | . . . . . Miscellaneous . | . . . . . Route ------- -11/Scrapyard -10/Materials (discovered 2 exits: [*Mat] / [*Min]) -10/Mines -10/Exiles -9/Mines History --------- Turn | Location | Event 5 | -11/Scrapyard | Discovered new exit (range 16) 83 | -11/Scrapyard | Entered Materials 303 | -10/Materials | Build established: Mutant 336 | -10/Materials | Core integrity fell below 50% 370 | -10/Materials | Lost 4 parts (1p2n1w) 389 | -10/Materials | Discovered new exit (range 15) 541 | -10/Materials | Discovered new exit (range 12) 779 | -10/Materials | Entered Mines 855 | -10/Mines | Learned Materials emergency access door positions 947 | -10/Mines | A weapon hastily lodged in a ceiling crevice suddenly fell to the ground 957 | -10/Mines | Deemed a non-threat by the Exiles lab entrance 957 | -10/Mines | Discovered new exit (range 5) 959 | -10/Mines | Entered Exiles 959 | -10/Exiles | Found Exiles lab destroyed 968 | -10/Exiles | Discovered new exit (range 15) 1120 | -10/Exiles | Entered Mines 1123 | -9/Mines | Core integrity fell below 20% 1195 | -9/Mines | Found a hidden stash of uninstalled traps 1254 | -9/Mines | Assembled infested the area 1259 | -9/Mines | Destroyed by as-09863 with Assembled Rifle Last Messages --------------- LOCATION=UNKNOWN GOAL=ESCAPE EXIT=FOUND Connecting with BIN's Terminal... Current location identified: Exiles Attempting to rewire as-79188. as-79188 cannot be rewired. Connecting with DEC's Terminal... Connecting with HEX's Terminal... Connecting with EX-Vault Access... LOCATION=UNKNOWN GOAL=ESCAPE Destroyed Flight Unit. S-10 Pest destroyed. The unstable cave ceiling collapses. T-07 Excavator is excavating. A stash of uninstalled traps is collected here! ALERT: Infestation in the mines, dispatching Demolisher response squad. EM Pulse Gun destroyed. Map ----- +----------------------------------------------------+ | ????????????????????????????????????? | | ????????????????????????????????????? | | ????????????????????????????????????? | | ????????????????????????????????????? | | ????????????????????????????????????? | | ?????????????#??????????????????????? | | ????????????? ??????????????????????? | | ????????????? #?????????????????????? | | ????????????? #??????#?????????????? | | ????????????? ####? #?????????????? | | ????????????? ? ??????????????? | | ?????????????? ? ???????????????? | | ?????????????? ???????????????? | | ?????????????? ????????????????? | | ?????????????? ?????????????????? | | ?????????????? ??????????????????? | | ?????????????? ???????????????????? | | ??????????????# #???????????????????? | | ??????######### #???????????????????? | | ??????# #???????????????????? | | #?????# #???????????????????? | | ####### ##### ##??????????##???????? | | #???# #??????????? #???????? | | #???# #?????????? #???????? | | #####???# #????????## #???????? | | ##???????# #???????##@ #???????? | | #####????????# ######### ##??????? | | ?????????????# #??????? | | ?????????????########### a #?????? | | ???????????????????????## aa #????? | | ????????????????????????##a aa "?? | | ??????????????????????????####aaaa #? | | ??????????????????????????????#aaaa#? | | ??????????????????????????????? aa##? | | ????????????????????????????????a##?? | | ?????????????????????????????????#??? | | ????????????????????????????????????? | | ????????????????????????????????????? | | ????????????????????????????????????? | | ????????????????????????????????????? | | ????????????????????????????????????? | | ????????????????????????????????????? | | ????????????????????????????????????? | | ????????????????????????????????????? | | ????????????????????????????????????? | | ????????????????????????????????????? | | ?#####??????????????????????????????? | | ## #??????????????????????????????? | | # #??????????????????????????????? | | # ##??????????????????????????????? | +----------------------------------------------------+ Best States ------------- Heat Dissipation 25 Energy Generation 10 Energy Capacity 250 Matter Stores 235 Matter Capacity 300 Sight Range 16 Terrain Scan Density 10 Evasion (%) 53 Recoil Reduction 2 Item Schematics ----------------- None Robot Schematics ------------------ None Fabricated ------------ Nothing Alien Tech Used ----------------- None Achievements -------------- None Challenges ------------ None Game ------ Seed EtherialImprovedMask Manual? 0 Play Time 00:15:55 Cumulative 6.6 hours Start 2024.11.30 @ 22:47:24 End 2024.11.30 @ 23:01:40 Sessions 1 Manual Loads 0 Difficulty Rogue Special Mode None Game No. 20 Rogue 19 Adventurer 1 Explorer 0 Win Type - Total 0 Types 0/0/0/0/0/0/0/0/0 Lore% 9 Gallery% 12 Achievement% 12 Wizard Run 0 Options --------- Layout 1 ASCII 0 Keyboard 0 Movement Numpad Keybinds 0 Fullscreen 1 Font 24/Smallcaps Map View 50x35 Zoom Use 0% Tactical HUD 0 Map Filters NONE Filters NONE Steam 1 RUN: 556c2d8a-6293-49fb-abea-09f4a05e4099